fUSD/lending_fUSD_20260508
["ID","MTS","AMOUNT","RATE_DAILY","PERIOD"]
[421826557,1778191841000,-1106.12949102,0.00016156,2]
[421826556,1778191841000,-1000.0,0.00016148,2]
[421826558,1778191841000,-150.30382099,0.00016173,2]
[421826560,1778191841000,-500.0,0.00016173,2]
[421826559,1778191841000,-499.53639878,0.00016173,2]
[421826554,1778191841000,-2461.43,0.00016116,2]
[421826561,1778191841000,-168.31790922,0.00016173,2]
[421826555,1778191841000,-1009.85094266,0.00016148,2]
[421826564,1778191841000,-500.0,0.00016173,2]
[421826563,1778191841000,-500.0,0.00016173,2]
[421826566,1778191841000,-500.0,0.00016173,2]
[421826562,1778191841000,-170.13489997,0.00016173,2]
[421826567,1778191841000,-300.0,0.00016225,2]
[421826571,1778191841000,-6843.40507811,0.00016226,2]
[421826568,1778191841000,-300.0,0.00016225,2]
[421826530,1778191841000,-666.0,0.000159,2]
[421826565,1778191841000,-500.0,0.00016173,2]
[421826553,1778191841000,-9999.99,0.00016116,2]
[421826570,1778191841000,-2460104.22881957,0.00016226,2]
[421826544,1778191841000,-299.99,0.00016116,4]
[421826537,1778191841000,-300.0,0.00016115,2]
[421826539,1778191841000,-156.31,0.00016116,2]
[421826535,1778191841000,-2236.95670848,0.00016087,2]
[421826538,1778191841000,-666.0,0.00016115,2]
[421826569,1778191841000,-666.0,0.00016225,2]
[421826542,1778191841000,-150.99,0.00016116,2]
[421826549,1778191841000,-9999.99,0.00016116,2]
[421826534,1778191841000,-1500.0,0.00016068,2]
[421826551,1778191841000,-1020.57,0.00016116,2]
[421826550,1778191841000,-3217.98,0.00016116,2]
[421826541,1778191841000,-1485.88,0.00016116,2]
[421826548,1778191841000,-9999.99,0.00016116,2]
[421826543,1778191841000,-325.2,0.00016116,2]
[421826546,1778191841000,-2845.7,0.00016116,5]
[421826545,1778191841000,-999.99,0.00016116,2]
[421826552,1778191841000,-2902.54,0.00016116,2]
[421826547,1778191841000,-24999.99,0.00016116,2]
[421826586,1778191843000,-61.43596596,0.00014585,2]
[421826587,1778191843000,-1265.01947711,0.00014585,2]
[421826585,1778191843000,-348.9059404,0.00014585,2]
[421826584,1778191843000,-0.00027513,0.00014585,2]
[421826717,1778191845000,8134.52606148,0.00011911,2]
[421826720,1778191845000,1994.61395864,0.00011911,2]
[421826890,1778191846000,-300.0,0.00014585,2]
[421826954,1778191846000,-8165.41280207,0.00014585,2]
[421826960,1778191846000,-500.0,0.00016273,2]
[421826958,1778191846000,-33052.36610232,0.00016226,2]
[421826956,1778191846000,-910.59509153,0.00015792,2]
[421827005,1778191847000,-514.6,0.00016438,2]
[421827013,1778191847000,-500.0,0.00016438,2]
[421826999,1778191847000,-875.77,0.00016325,2]
[421827002,1778191847000,-228.12,0.00016327,2]
[421827000,1778191847000,-500.0,0.00016325,2]
[421826996,1778191847000,-500.0,0.00016325,2]
[421826994,1778191847000,-732.79,0.00016325,2]
[421826992,1778191847000,-593.60631339,0.00016325,2]
[421826990,1778191847000,-500.0,0.00016325,2]
[421826988,1778191847000,-500.0,0.00016325,2]
[421826986,1778191847000,-515.31571853,0.00016325,2]
[421826984,1778191847000,-500.0,0.00016325,2]
[421826978,1778191847000,-500.0,0.00016325,2]
[421826980,1778191847000,-500.0,0.00016325,2]
[421826974,1778191847000,-500.0,0.00016325,2]
[421826976,1778191847000,-500.0,0.00016325,2]
[421826972,1778191847000,-500.0,0.00016325,2]
[421826970,1778191847000,-500.0,0.00016325,2]
[421826966,1778191847000,-666.0,0.00016325,2]
[421826968,1778191847000,-501.69944493,0.00016325,2]
[421826964,1778191847000,-300.0,0.00016325,2]
[421826962,1778191847000,-300.0,0.00016325,2]
[421827007,1778191847000,-500.0,0.00016438,2]
[421826982,1778191847000,-500.0,0.00016325,2]
[421827009,1778191847000,-500.0,0.00016438,2]
[421827030,1778191847000,-500.0,0.00016438,2]
[421827011,1778191847000,-500.0,0.00016438,2]
[421827052,1778191847000,-1252.0,0.00016943,2]
[421827050,1778191847000,-1000.0,0.00016721,2]
[421827057,1778191847000,-27.51062727,0.00016965,7]
[421827061,1778191847000,-1000.0,0.00016986,2]
[421827048,1778191847000,-1000.0,0.00016721,2]
[421827055,1778191847000,-1135.52,0.00016961,2]
[421827063,1778191847000,-1000.0,0.00016986,2]
[421827065,1778191847000,-293.32398151,0.00016986,2]
[421827046,1778191847000,-1000.0,0.00016721,2]
[421827036,1778191847000,-200.0,0.00016473,2]
[421827042,1778191847000,-1500.0,0.00016696,2]
[421827044,1778191847000,-1000.0,0.00016721,2]
[421827040,1778191847000,-387.1658263,0.00016635,2]
[421827015,1778191847000,-500.0,0.00016438,2]
[421827020,1778191847000,-492.6350223,0.00016438,2]
[421827038,1778191847000,-2000.0,0.00016616,2]
[421827024,1778191847000,-500.0,0.00016438,2]
[421827032,1778191847000,-500.0,0.00016438,2]
[421827022,1778191847000,-500.0,0.00016438,2]
[421827034,1778191847000,-377.53,0.0001646,2]
[421827028,1778191847000,-500.0,0.00016438,2]
[421827026,1778191847000,-167.45360825,0.00016438,2]
[421827059,1778191847000,-133.16136029,0.00016965,7]
[421827017,1778191847000,-500.0,0.00016438,2]
[421827648,1778191856000,152.0,0.00011924,2]
[421827650,1778191923000,500.0,0.00011888,2]
[421827651,1778191945000,202.0,0.00011484,2]
[421827652,1778191946000,202.0,0.00011909,2]
[421827653,1778192086000,500.0,0.00011888,2]
[421827654,1778192245000,196.8705,0.00011899,2]
[421827656,1778192343000,151.02,8.841e-05,2]
[421827655,1778192343000,151.02,7.073e-05,2]
[421827657,1778192343000,151.02,0.00010609,2]
[421827659,1778192626000,1300.000001,0.00030137,120]
[421827660,1778192843000,150.00000001,0.00030137,120]
[421827662,1778192863000,-486.26,0.00013491,2]
[421827661,1778192863000,-151.02,0.00012377,2]
[421827664,1778193008000,1000.0,0.0003013,120]
[421827682,1778193031000,-2500.0,0.00013699,2]
[421827686,1778193031000,-166.66,0.00013836,2]
[421827687,1778193031000,-166.66,0.00013973,2]
[421827683,1778193031000,-632.96,0.00013709,2]
[421827689,1778193031000,-200.0,0.0001399,2]
[421827681,1778193031000,-200.0,0.00013699,2]
[421827685,1778193031000,-1852.42,0.00013765,2]
[421827684,1778193031000,-908.42,0.00013713,2]
[421827679,1778193031000,-163.16426004,0.00013597,2]
[421827675,1778193031000,-20071.24,0.00013417,2]
[421827678,1778193031000,-250.0,0.00013544,2]
[421827673,1778193031000,-632.96,0.00013375,2]
[421827677,1778193031000,-3318.51,0.00013491,2]
[421827676,1778193031000,-150.0,0.00013455,2]
[421827674,1778193031000,-1200.0,0.00013416,2]
[421827671,1778193031000,-1000.0,0.00013196,2]
[421827672,1778193031000,-182.49,0.00013279,2]
[421827688,1778193031000,-12014.61704422,0.0001399,2]
[421827680,1778193031000,-166.66,0.00013699,2]
[421827690,1778193031000,-182.49,0.00014017,2]
[421827701,1778193031000,-1078.66240771,0.00014472,5]
[421827699,1778193031000,-166.66,0.00014384,2]
[421827692,1778193031000,-632.96,0.00014043,2]
[421827709,1778193031000,-3286.617,0.000146,2]
[421827708,1778193031000,-163.16426004,0.000146,2]
[421827704,1778193031000,-1000.0,0.000145,5]
[421827705,1778193031000,-153.96303884,0.000146,2]
[421827706,1778193031000,-4164.2104,0.000146,2]
[421827707,1778193031000,-4965.60586532,0.000146,2]
[421827703,1778193031000,-199.821,0.00014472,2]
[421827702,1778193031000,-1425.491,0.00014472,2]
[421827711,1778193031000,-9321.15376761,0.000146,2]
[421827698,1778193031000,-632.96,0.00014378,2]
[421827697,1778193031000,-166.66,0.00014247,2]
[421827700,1778193031000,-167.37,0.00014434,2]
[421827696,1778193031000,-151.02,0.00014145,2]
[421827694,1778193031000,-5278.43,0.00014067,2]
[421827695,1778193031000,-166.66,0.0001411,2]
[421827693,1778193031000,-150.0,0.00014066,2]
[421827691,1778193031000,-150.0,0.00014033,2]
[421827710,1778193031000,-33139.5584,0.000146,2]
[421827713,1778193032000,-781.95418243,0.000146,2]
[421827712,1778193032000,-505.0,0.000146,2]
[421827752,1778193037000,-500.0,0.00014699,2]
[421827750,1778193037000,-500.0,0.00014699,2]
[421827754,1778193037000,-500.0,0.00014699,2]
[421827746,1778193037000,-17243.82114926,0.00014685,2]
[421827748,1778193037000,-500.0,0.00014699,2]
[421827745,1778193037000,-2127.52885074,0.00014685,2]
[421827747,1778193037000,-1000.0,0.00014699,2]
[421827742,1778193037000,-88367.79754996,0.000146,2]
[421827743,1778193037000,-2500.0,0.000146,2]
[421827744,1778193037000,-2100.0,0.000146,5]
[421827751,1778193037000,-500.0,0.00014699,2]
[421827753,1778193037000,-500.0,0.00014699,2]
[421827757,1778193037000,-500.0,0.00014699,2]
[421827749,1778193037000,-500.0,0.00014699,2]
[421827758,1778193037000,-500.0,0.00014699,2]
[421827755,1778193037000,-500.0,0.00014699,2]
[421827770,1778193037000,-500.0,0.00014699,2]
[421827768,1778193037000,-500.0,0.00014699,2]
[421827767,1778193037000,-500.0,0.00014699,2]
[421827761,1778193037000,-500.0,0.00014699,2]
[421827760,1778193037000,-500.0,0.00014699,2]
[421827762,1778193037000,-500.0,0.00014699,2]
[421827766,1778193037000,-500.0,0.00014699,2]
[421827764,1778193037000,-500.0,0.00014699,2]
[421827763,1778193037000,-500.0,0.00014699,2]
[421827765,1778193037000,-500.0,0.00014699,2]
[421827759,1778193037000,-500.0,0.00014699,2]
[421827756,1778193037000,-500.0,0.00014699,2]
[421827769,1778193037000,-500.0,0.00014699,2]
[421827830,1778193038000,-9999.99,0.000147,2]
[421827836,1778193038000,-9999.99,0.000147,2]
[421827834,1778193038000,-150.99,0.000147,2]
[421827820,1778193038000,-500.0,0.00014699,2]
[421827882,1778193038000,-151.0,0.00014791,2]
[421827818,1778193038000,-167.0,0.00014699,2]
[421827816,1778193038000,-500.0,0.00014699,2]
[421827824,1778193038000,-2461.43,0.000147,2]
[421827814,1778193038000,-500.0,0.00014699,2]
[421827828,1778193038000,-2902.54,0.000147,2]
[421827838,1778193038000,-999.99,0.000147,2]
[421827832,1778193038000,-3217.98,0.000147,2]
[421827822,1778193038000,-156.31,0.000147,2]
[421827841,1778193038000,-9999.99,0.000147,2]
[421827849,1778193038000,-3200.0,0.000147,5]
[421827854,1778193038000,-421.8458643,0.000147,2]
[421827856,1778193038000,-2845.7,0.000147,2]
[421827845,1778193038000,-153.96303884,0.000147,2]
[421827843,1778193038000,-2000.0,0.000147,2]
[421827858,1778193038000,-9999.99,0.000147,2]
[421827860,1778193038000,-1485.88,0.000147,2]
[421827847,1778193038000,-1265.84834725,0.000147,2]
[421827862,1778193038000,-1144.93,0.000147,2]
[421827864,1778193038000,-24999.99,0.000147,2]
[421827866,1778193038000,-1020.57,0.000147,2]
[421827878,1778193038000,-1680.0,0.00014758,2]
[421827876,1778193038000,-182.49,0.00014754,2]
[421827826,1778193038000,-299.99,0.000147,2]
[421827851,1778193038000,-500.0,0.000147,2]
[421827799,1778193038000,-360.43483147,0.00014699,2]
[421827773,1778193038000,-500.0,0.00014699,2]
[421827797,1778193038000,-500.0,0.00014699,2]
[421827870,1778193038000,-1505.59519164,0.000147,2]
[421827775,1778193038000,-500.0,0.00014699,2]
[421827777,1778193038000,-500.0,0.00014699,2]
[421827772,1778193038000,-500.0,0.00014699,2]
[421827774,1778193038000,-500.0,0.00014699,2]
[421827771,1778193038000,-500.0,0.00014699,2]
[421827776,1778193038000,-500.0,0.00014699,2]
[421827778,1778193038000,-500.0,0.00014699,2]
[421827781,1778193038000,-500.0,0.00014699,2]
[421827780,1778193038000,-500.0,0.00014699,2]
[421827779,1778193038000,-500.0,0.00014699,2]
[421827782,1778193038000,-500.0,0.00014699,2]
[421827790,1778193038000,-500.0,0.00014699,2]
[421827812,1778193038000,-500.0,0.00014699,2]
[421827785,1778193038000,-500.0,0.00014699,2]
[421827784,1778193038000,-500.0,0.00014699,2]
[421827787,1778193038000,-500.0,0.00014699,2]
[421827788,1778193038000,-500.0,0.00014699,2]
[421827783,1778193038000,-500.0,0.00014699,2]
[421827789,1778193038000,-500.0,0.00014699,2]
[421827804,1778193038000,-500.0,0.00014699,2]
[421827802,1778193038000,-500.0,0.00014699,2]
[421827791,1778193038000,-500.0,0.00014699,2]
[421827806,1778193038000,-500.0,0.00014699,2]
[421827794,1778193038000,-500.0,0.00014699,2]
[421827810,1778193038000,-500.0,0.00014699,2]
[421827808,1778193038000,-500.0,0.00014699,2]
[421827795,1778193038000,-500.0,0.00014699,2]
[421827786,1778193038000,-500.0,0.00014699,2]
[421827874,1778193038000,-632.96,0.00014712,2]
[421827792,1778193038000,-500.0,0.00014699,2]
[421827872,1778193038000,-3296.43558961,0.000147,2]
[421827950,1778193038000,-151.0,0.00014791,2]
[421827955,1778193038000,-151.0,0.00014791,2]
[421827949,1778193038000,-500.0,0.00014791,2]
[421827952,1778193038000,-500.0,0.00014791,2]
[421827947,1778193038000,-151.0,0.00014791,2]
[421827962,1778193038000,-151.0,0.00014791,2]
[421827969,1778193038000,-151.0,0.00014791,2]
[421827958,1778193038000,-151.0,0.00014791,2]
[421827956,1778193038000,-239.02460032,0.00014791,2]
[421827966,1778193038000,-151.0,0.00014791,2]
[421827960,1778193038000,-151.0,0.00014791,2]
[421827964,1778193038000,-151.0,0.00014791,2]
[421827971,1778193038000,-151.0,0.00014791,2]
[421827972,1778193038000,-151.0,0.00014791,2]
[421827974,1778193038000,-151.0,0.00014791,2]
[421827976,1778193038000,-151.0,0.00014791,2]
[421827978,1778193038000,-151.0,0.00014791,2]
[421827982,1778193038000,-151.0,0.00014791,2]
[421827988,1778193038000,-847.88,0.00014799,2]
[421827990,1778193038000,-847.88,0.00014799,2]
[421827992,1778193038000,-847.88,0.00014799,2]
[421827986,1778193038000,-5642.77808667,0.00014799,2]
[421827980,1778193038000,-151.0,0.00014791,2]
[421827994,1778193038000,-847.88,0.00014799,2]
[421827996,1778193038000,-847.88,0.00014799,2]
[421827998,1778193038000,-847.88,0.00014799,2]
[421828002,1778193038000,-847.88,0.00014799,2]
[421828000,1778193038000,-847.88,0.00014799,2]
[421827884,1778193038000,-500.0,0.00014791,2]
[421827945,1778193038000,-500.0,0.00014791,2]
[421827943,1778193038000,-151.0,0.00014791,2]
[421827984,1778193038000,-2080.17592889,0.00014791,2]
[421827941,1778193038000,-500.0,0.00014791,2]
[421827939,1778193038000,-151.0,0.00014791,2]
[421827868,1778193038000,-325.2,0.000147,2]
[421827880,1778193038000,-200.0,0.00014791,2]
[421827886,1778193038000,-151.0,0.00014791,2]
[421827888,1778193038000,-500.0,0.00014791,2]
[421827893,1778193038000,-500.0,0.00014791,2]
[421827896,1778193038000,-151.0,0.00014791,2]
[421827897,1778193038000,-500.0,0.00014791,2]
[421827901,1778193038000,-500.0,0.00014791,2]
[421827892,1778193038000,-500.0,0.00014791,2]
[421827899,1778193038000,-151.0,0.00014791,2]
[421827903,1778193038000,-500.0,0.00014791,2]
[421827905,1778193038000,-151.0,0.00014791,2]
[421827911,1778193038000,-500.0,0.00014791,2]
[421827890,1778193038000,-151.0,0.00014791,2]
[421827915,1778193038000,-151.0,0.00014791,2]
[421827930,1778193038000,-489.80489431,0.00014791,2]
[421827913,1778193038000,-151.0,0.00014791,2]
[421827933,1778193038000,-151.0,0.00014791,2]
[421827927,1778193038000,-500.0,0.00014791,2]
[421827937,1778193038000,-500.0,0.00014791,2]
[421827925,1778193038000,-151.0,0.00014791,2]
[421827929,1778193038000,-151.0,0.00014791,2]
[421827935,1778193038000,-500.0,0.00014791,2]
[421827921,1778193038000,-151.0,0.00014791,2]
[421827919,1778193038000,-500.0,0.00014791,2]
[421827917,1778193038000,-500.0,0.00014791,2]
[421827909,1778193038000,-151.0,0.00014791,2]
[421827907,1778193038000,-500.0,0.00014791,2]
[421827923,1778193038000,-500.0,0.00014791,2]
[421828078,1778193039000,-500.0,0.00014799,2]
[421828076,1778193039000,-500.0,0.00014799,2]
[421828066,1778193039000,-500.0,0.00014799,2]
[421828080,1778193039000,-500.0,0.00014799,2]
[421828082,1778193039000,-500.0,0.00014799,2]
[421828084,1778193039000,-500.0,0.00014799,2]
[421828086,1778193039000,-612.77448273,0.00014799,2]
[421828087,1778193039000,-500.0,0.00014799,2]
[421828089,1778193039000,-500.0,0.00014799,2]
[421828064,1778193039000,-236.86755923,0.00014799,2]
[421828095,1778193039000,-743.92,0.00014799,2]
[421828068,1778193039000,-500.0,0.00014799,2]
[421828074,1778193039000,-500.0,0.00014799,2]
[421828072,1778193039000,-500.0,0.00014799,2]
[421828093,1778193039000,-350.50854249,0.00014799,2]
[421828091,1778193039000,-500.0,0.00014799,2]
[421828097,1778193039000,-743.92,0.00014799,2]
[421828100,1778193039000,-743.92,0.00014799,2]
[421828049,1778193039000,-500.0,0.00014799,2]
[421828103,1778193039000,-743.92,0.00014799,2]
[421828070,1778193039000,-500.0,0.00014799,2]
[421828050,1778193039000,-420.7878576,0.00014799,2]
[421828014,1778193039000,-500.0,0.00014799,2]
[421828045,1778193039000,-500.0,0.00014799,2]
[421828102,1778193039000,-743.92,0.00014799,2]
[421828004,1778193039000,-847.88,0.00014799,2]
[421828007,1778193039000,-500.0,0.00014799,2]
[421828009,1778193039000,-500.0,0.00014799,2]
[421828005,1778193039000,-847.88,0.00014799,2]
[421828019,1778193039000,-500.0,0.00014799,2]
[421828021,1778193039000,-500.0,0.00014799,2]
[421828017,1778193039000,-500.0,0.00014799,2]
[421828011,1778193039000,-500.0,0.00014799,2]
[421828015,1778193039000,-500.0,0.00014799,2]
[421828023,1778193039000,-640.39212556,0.00014799,2]
[421828025,1778193039000,-500.0,0.00014799,2]
[421828027,1778193039000,-422.88900491,0.00014799,2]
[421828031,1778193039000,-500.0,0.00014799,2]
[421828041,1778193039000,-500.0,0.00014799,2]
[421828036,1778193039000,-635.96400037,0.00014799,2]
[421828038,1778193039000,-500.0,0.00014799,2]
[421828029,1778193039000,-500.0,0.00014799,2]
[421828034,1778193039000,-500.0,0.00014799,2]
[421828042,1778193039000,-283.58128838,0.00014799,2]
[421828033,1778193039000,-500.0,0.00014799,2]
[421828046,1778193039000,-500.0,0.00014799,2]
[421828107,1778193039000,-743.92,0.00014799,2]
[421828111,1778193039000,-743.92,0.00014799,2]
[421828105,1778193039000,-743.92,0.00014799,2]
[421828139,1778193039000,-500.0,0.00014873,2]
[421828137,1778193039000,-170.13489997,0.00014873,2]
[421828144,1778193039000,-500.0,0.00014873,2]
[421828146,1778193039000,-500.0,0.00014873,2]
[421828145,1778193039000,-205.5889821,0.00014873,2]
[421828142,1778193039000,-500.0,0.00014873,2]
[421828140,1778193039000,-500.0,0.00014873,2]
[421828143,1778193039000,-500.0,0.00014873,2]
[421828158,1778193039000,-847.88,0.00014898,2]
[421828148,1778193039000,-500.0,0.00014873,2]
[421828147,1778193039000,-500.0,0.00014873,2]
[421828150,1778193039000,-500.0,0.00014873,2]
[421828149,1778193039000,-500.0,0.00014873,2]
[421828153,1778193039000,-500.0,0.00014873,2]
[421828155,1778193039000,-500.0,0.00014873,2]
[421828157,1778193039000,-847.88,0.00014898,2]
[421828154,1778193039000,-166.78470276,0.00014873,2]
[421828152,1778193039000,-172.38116278,0.00014873,2]
[421828156,1778193039000,-847.88,0.00014898,2]
[421828114,1778193039000,-500.0,0.00014799,2]
[421828159,1778193039000,-847.88,0.00014898,2]
[421828135,1778193039000,-396.56341558,0.00014873,2]
[421828138,1778193039000,-168.31790922,0.00014873,2]
[421828151,1778193039000,-500.0,0.00014873,2]
[421828136,1778193039000,-500.0,0.00014873,2]
[421828109,1778193039000,-743.92,0.00014799,2]
[421828141,1778193039000,-163.57461107,0.00014873,2]
[421828113,1778193039000,-743.92,0.00014799,2]
[421828116,1778193039000,-500.0,0.00014799,2]
[421828115,1778193039000,-500.0,0.00014799,2]
[421828119,1778193039000,-526.73005918,0.00014799,2]
[421828118,1778193039000,-500.0,0.00014799,2]
[421828120,1778193039000,-247489.58135352,0.000148,2]
[421828124,1778193039000,-4500.0,0.000148,2]
[421828134,1778193039000,-500.0,0.00014873,2]
[421828117,1778193039000,-500.0,0.00014799,2]
[421828125,1778193039000,-2247723.86864548,0.000148,2]
[421828133,1778193039000,-500.0,0.00014873,2]
[421828130,1778193039000,-4300.0,0.000148,5]
[421828132,1778193039000,-503.58094682,0.00014873,2]
[421828129,1778193039000,-499.96585539,0.000148,2]
[421828127,1778193039000,-5884.76430476,0.000148,2]
[421828126,1778193039000,-508.85,0.000148,2]
[421828123,1778193039000,-286.550001,0.000148,2]
[421828131,1778193039000,-250.0,0.0001484,2]
[421828128,1778193039000,-738.21553086,0.000148,2]
[421828188,1778193040000,-743.92,0.0001504,2]
[421828211,1778193040000,-908.42,0.00015427,2]
[421828201,1778193040000,-500.64361665,0.00015421,2]
[421828199,1778193040000,-410.02071293,0.00015421,2]
[421828210,1778193040000,-1000.0,0.00015421,2]
[421828200,1778193040000,-443.17533034,0.00015421,2]
[421828196,1778193040000,-1000.0,0.00015421,2]
[421828194,1778193040000,-2157.14243826,0.00015339,2]
[421828193,1778193040000,-4965.6058653,0.00015299,2]
[421828197,1778193040000,-499.53639878,0.00015421,2]
[421828202,1778193040000,-500.0,0.00015421,2]
[421828198,1778193040000,-500.0,0.00015421,2]
[421828203,1778193040000,-1000.0,0.00015421,2]
[421828216,1778193040000,-2236.95670847,0.00015887,2]
[421828206,1778193040000,-1000.0,0.00015421,2]
[421828209,1778193040000,-502.04883511,0.00015421,2]
[421828208,1778193040000,-1000.0,0.00015421,2]
[421828220,1778193040000,-1215.32218827,0.00015968,2]
[421828207,1778193040000,-1000.0,0.00015421,2]
[421828205,1778193040000,-1068.05268496,0.00015421,2]
[421828212,1778193040000,-182.49,0.00015492,2]
[421828214,1778193040000,-4965.6058653,0.00015649,2]
[421828215,1778193040000,-975.84,0.00015831,2]
[421828223,1778193040000,-186.36034437,0.00016,2]
[421828218,1778193040000,-1500.0,0.00015968,2]
[421828191,1778193040000,-500.0,0.00015255,2]
[421828204,1778193040000,-702.40725895,0.00015421,2]
[421828186,1778193040000,-847.88,0.0001504,2]
[421828166,1778193040000,-500.0,0.00014898,2]
[421828185,1778193040000,-2000.0,0.00015024,2]
[421828217,1778193040000,-510.66718389,0.00015968,2]
[421828161,1778193040000,-847.88,0.00014898,2]
[421828163,1778193040000,-500.0,0.00014898,2]
[421828162,1778193040000,-500.0,0.00014898,2]
[421828165,1778193040000,-500.0,0.00014898,2]
[421828170,1778193040000,-743.92,0.00014898,2]
[421828168,1778193040000,-743.92,0.00014898,2]
[421828164,1778193040000,-500.0,0.00014898,2]
[421828167,1778193040000,-500.0,0.00014898,2]
[421828160,1778193040000,-847.88,0.00014898,2]
[421828169,1778193040000,-743.92,0.00014898,2]
[421828171,1778193040000,-743.92,0.00014898,2]
[421828189,1778193040000,-255.0,0.00015191,2]
[421828173,1778193040000,-743.92,0.00014898,2]
[421828174,1778193040000,-1500000.0,0.00014899,2]
[421828183,1778193040000,-300.0,0.00014999,2]
[421828176,1778193040000,-5400.0,0.000149,5]
[421828175,1778193040000,-10000.0,0.000149,2]
[421828181,1778193040000,-300.0,0.00014999,2]
[421828182,1778193040000,-666.0,0.00014999,2]
[421828177,1778193040000,-4965.6058653,0.0001495,2]
[421828179,1778193040000,-300.0,0.00014999,2]
[421828178,1778193040000,-435.24846445,0.00014974,2]
[421828180,1778193040000,-666.0,0.00014999,2]
[421828184,1778193040000,-672.63471202,0.00014999,2]
[421828187,1778193040000,-500.0,0.0001504,2]
[421828172,1778193040000,-743.92,0.00014898,2]
[421828224,1778193040000,-47642.78,0.00016018,2]
[421828271,1778193040000,-500.0,0.00016986,2]
[421828221,1778193040000,-1500.0,0.00015968,2]
[421828255,1778193040000,-165.49031908,0.00016573,2]
[421828253,1778193040000,-189.20905721,0.00016573,2]
[421828256,1778193040000,-165.67847138,0.00016573,2]
[421828254,1778193040000,-500.0,0.00016573,2]
[421828259,1778193040000,-500.0,0.00016573,2]
[421828265,1778193040000,-2000.0,0.00016902,2]
[421828261,1778193040000,-4965.6058653,0.00016698,2]
[421828262,1778193040000,-161.73,0.00016723,2]
[421828264,1778193040000,-14074.96392825,0.0001682,2]
[421828268,1778193040000,-200.0,0.00016986,2]
[421828260,1778193040000,-503.11086584,0.00016573,2]
[421828267,1778193040000,-2000.0,0.00016986,2]
[421828249,1778193040000,-743.92,0.00016543,2]
[421828266,1778193040000,-182.49,0.00016968,2]
[421828270,1778193040000,-310.0,0.00016986,3]
[421828280,1778193040000,-908.42,0.00017142,2]
[421828273,1778193040000,-710.46501094,0.00016986,2]
[421828272,1778193040000,-706.67601849,0.00016986,2]
[421828277,1778193040000,-500.0,0.00017121,2]
[421828269,1778193040000,-200.0,0.00016986,2]
[421828275,1778193040000,-4965.6058653,0.00017048,2]
[421828276,1778193040000,-2500.0,0.00017064,2]
[421828278,1778193040000,-500.0,0.00017121,2]
[421828274,1778193040000,-377.53,0.00017028,2]
[421828279,1778193040000,-501.85037904,0.00017121,2]
[421828213,1778193040000,-161.73,0.00015608,2]
[421828263,1778193040000,-508.85,0.000168,2]
[421828251,1778193040000,-1077.7669488,0.00016544,2]
[421828258,1778193040000,-500.0,0.00016573,2]
[421828248,1778193040000,-500.0,0.00016543,2]
[421828250,1778193040000,-30322.2284036,0.00016544,2]
[421828225,1778193040000,-300.0,0.00016115,2]
[421828222,1778193040000,-4965.6058653,0.00015999,2]